Workbook

Sheet Приожение 4
A2: ОБЪЕМЫ РЕАЛИЗАЦИИ И ФИНАНСИРОВАНИЯ мероприятий в рамках пообъектного плана-графика догазификации
A4: Наименование газораспределительной организации | B4: 2021 год | G4: 2021 год | I4: 2022 год | N4: 2022 год | P4: 2023 год | U4: 2023 год | W4: 2024 год | AB4: 2024 год | AD4: 2025 год | AI4: 2025 год | AK4: 2026 год | AP4: 2026 год | AR4: 2027 год | AW4: 2027 год | AY4: 2028 год | BD4: 2028 год | BF4: 2029 год | BK4: 2029 год | BM4: 2030 год | BR4: 2030 год | BT4: 2031 год | BY4: 2031 год | CA4: 2032 год | CF4: 2032 год
B5: Объем финансирования мероприятия в рамках пообъектного плана-графика догазификации (тыс. рублей) с налогом на добавленную стоимость | G5: Объем реализации мероприятия в рамках пообъектного плана-графика догазификации | I5: Объем финансирования мероприятия в рамках пообъектного плана-графика догазификации (тыс. рублей) с налогом на добавленную стоимость | N5: Объем реализации мероприятия в рамках пообъектного плана-графика догазификации | P5: Объем финансирования мероприятия в рамках пообъектного плана-графика догазификации (тыс. рублей) с налогом на добавленную стоимость | U5: Объем реализации мероприятия в рамках пообъектного плана-графика догазификации | W5: Объем финансирования мероприятия в рамках пообъектного плана-графика догазификации (тыс. рублей) с налогом на добавленную стоимость | AB5: Объем реализации мероприятия в рамках пообъектного плана-графика догазификации | AD5: Объем финансирования мероприятия в рамках пообъектного плана-графика догазификации (тыс. рублей) с налогом на добавленную стоимость | AI5: Объем реализации мероприятия в рамках пообъектного плана-графика догазификации | AK5: Объем финансирования мероприятия в рамках пообъектного плана-графика догазификации (тыс. рублей) с налогом на добавленную стоимость | AP5: Объем реализации мероприятия в рамках пообъектного плана-графика догазификации | AR5: Объем финансирования мероприятия в рамках пообъектного плана-графика догазификации (тыс. рублей) с налогом на добавленную стоимость | AW5: Объем реализации мероприятия в рамках пообъектного плана-графика догазификации | AY5: Объем финансирования мероприятия в рамках пообъектного плана-графика догазификации (тыс. рублей) с налогом на добавленную стоимость | BD5: Объем реализации мероприятия в рамках пообъектного плана-графика догазификации | BF5: Объем финансирования мероприятия в рамках пообъектного плана-графика догазификации (тыс. рублей) с налогом на добавленную стоимость | BK5: Объем реализации мероприятия в рамках пообъектного плана-графика догазификации | BM5: Объем финансирования мероприятия в рамках пообъектного плана-графика догазификации (тыс. рублей) с налогом на добавленную стоимость | BR5: Объем реализации мероприятия в рамках пообъектного плана-графика догазификации | BT5: Объем финансирования мероприятия в рамках пообъектного плана-графика догазификации (тыс. рублей) с налогом на добавленную стоимость | BY5: Объем реализации мероприятия в рамках пообъектного плана-графика догазификации | CA5: Объем финансирования мероприятия в рамках пообъектного плана-графика догазификации (тыс. рублей) с налогом на добавленную стоимость | CF5: Объем реализации мероприятия в рамках пообъектного плана-графика догазификации
B6: Всего, в том числе | C6: средства от применения тарифа на услуги по транспорти-ровке газа по газораспреде-лительным сетям | D6: средства от применения специальной надбавки к тарифу на услуги по транспорти-ровке газа по газораспреде-лительным сетям | E6: средства единого оператора газификации и (или) регионального оператора газификации | F6: иные средства | G6: Факт освоения вложений (тыс. рублей) с налогом на добавленную стоимость | H6: Факт ввода основных средств (тыс. рублей) без налога на добавленную стоимость | I6: Всего, в том числе | J6: средства от применения тарифа на услуги по транспортировке газа по газораспреде-лительным сетям | K6: средства от применения специальной надбавки к тарифу на услуги по транспорти-ровке газа по газораспреде-лительным сетям | L6: средства единого оператора газификации и (или) регионального оператора газификации | M6: иные средства | N6: Факт освоения вложений (тыс. рублей) с налогом на добавленную стоимость | O6: Факт ввода основных средств (тыс. рублей) без налога на добавленную стоимость | P6: Всего, в том числе | Q6: средства от применения тарифа на услуги по транспортировке газа по газораспреде-лительным сетям | R6: средства от применения специальной надбавки к тарифу на услуги по транспорти-ровке газа по газораспределительным сетям | S6: средства единого оператора газификации и (или) регионального оператора газификации | T6: иные средства | U6: Факт освоения вложений (тыс. рублей) с налогом на добавленную стоимость | V6: Факт ввода основных средств (тыс. рублей) без налога на добавленную стоимость | W6: Всего, в том числе | X6: средства от применения тарифа на услуги по транспортировке газа по газораспреде-лительным сетям | Y6: средства от применения специальной надбавки к тарифу на услуги по транспорти-ровке газа по газораспреде-лительным сетям | Z6: средства единого оператора газификации и (или) регионального оператора газификации | AA6: иные средства | AB6: План освоения вложений (тыс. рублей) с налогом на добавленную стоимость | AC6: План ввода основных средств (тыс. рублей) без налога на добавленную стоимость | AD6: Всего, в том числе | AE6: средства от применения тарифа на услуги по транспортировке газа по газораспреде-лительным сетям | AF6: средства от применения специальной надбавки к тарифу на услуги по транспорти-ровке газа по газораспреде-лительным сетям | AG6: средства единого оператора газификации и (или) регионального оператора газификации | AH6: иные средства | AI6: План освоения вложений (тыс. рублей) с налогом на добавленную стоимость | AJ6: План ввода основных средств (тыс. рублей) без налога на добавленную стоимость | AK6: Всего, в том числе | AL6: средства от применения тарифа на услуги по транспортировке газа по газораспреде-лительным сетям | AM6: средства от применения специальной надбавки к тарифу на услуги по транспорти-ровке газа по газораспреде-лительным сетям | AN6: средства единого оператора газификации и (или) регионального оператора газификации | AO6: иные средства | AP6: План освоения вложений (тыс. рублей) с налогом на добавленную стоимость | AQ6: План ввода основных средств (тыс. рублей) без налога на добавленную стоимость | AR6: Всего, в том числе | AS6: средства от применения тарифа на услуги по транспортировке газа по газораспреде-лительным сетям | AT6: средства от применения специальной надбавки к тарифу на услуги по транспорти-ровке газа по газораспреде-лительным сетям | AU6: средства единого оператора газификации и (или) регионального оператора газификации | AV6: иные средства | AW6: План освоения вложений (тыс. рублей) с налогом на добавленную стоимость | AX6: План ввода основных средств (тыс. рублей) без налога на добавленную стоимость | AY6: Всего, в том числе | AZ6: средства от применения тарифа на услуги по транспортировке газа по газораспреде-лительным сетям | BA6: средства от применения специальной надбавки к тарифу на услуги по транспорти-ровке газа по газораспреде-лительным сетям | BB6: средства единого оператора газификации и (или) регионального оператора газификации | BC6: иные средства | BD6: План освоения вложений (тыс. рублей) с налогом на добавленную стоимость | BE6: План ввода основных средств (тыс. рублей) без налога на добавленную стоимость | BF6: Всего, в том числе | BG6: средства от применения тарифа на услуги по транспортировке газа по газораспреде-лительным сетям | BH6: средства от применения специальной надбавки к тарифу на услуги по транспорти-ровке газа по газораспреде-лительным сетям | BI6: средства единого оператора газификации и (или) регионального оператора газификации | BJ6: иные средства | BK6: План освоения вложений (тыс. рублей) с налогом на добавленную стоимость | BL6: План ввода основных средств (тыс. рублей) без налога на добавленную стоимость | BM6: Всего, в том числе | BN6: средства от применения тарифа на услуги по транспортировке газа по газораспреде-лительным сетям | BO6: средства от применения специальной надбавки к тарифу на услуги по транспорти-ровке газа по газораспреде-лительным сетям | BP6: средства единого оператора газификации и (или) регионального оператора газификации | BQ6: иные средства | BR6: План освоения вложений (тыс. рублей) с налогом на добавленную стоимость | BS6: План ввода основных средств (тыс. рублей) без налога на добавленную стоимость | BT6: Всего, в том числе | BU6: средства от применения тарифа на услуги по транспортировке газа по газораспреде-лительным сетям | BV6: средства от применения специальной надбавки к тарифу на услуги по транспорти-ровке газа по газораспреде-лительным сетям | BW6: средства единого оператора газификации и (или) регионального оператора газификации | BX6: иные средства | BY6: План освоения вложений (тыс. рублей) с налогом на добавленную стоимость | BZ6: План ввода основных средств (тыс. рублей) без налога на добавленную стоимость | CA6: Всего, в том числе | CB6: средства от применения тарифа на услуги по транспортировке газа по газораспреде-лительным сетям | CC6: средства от применения специальной надбавки к тарифу на услуги по транспорти-ровке газа по газораспреде-лительным сетям | CD6: средства единого оператора газификации и (или) регионального оператора газификации | CE6: иные средства | CF6: План освоения вложений (тыс. рублей) с налогом на добавленную стоимость | CG6: План ввода основных средств (тыс. рублей) без налога на добавленную стоимость
A7: 1 | B7: 2 | C7: 3 | D7: 4 | E7: 5 | F7: 6 | G7: 7 | H7: 8 | I7: 9 | J7: 10 | K7: 11 | L7: 12 | M7: 13 | N7: 14 | O7: 15 | P7: 16 | Q7: 17 | R7: 18 | S7: 19 | T7: 20 | U7: 21 | V7: 22 | W7: 23 | X7: 24 | Y7: 25 | Z7: 26 | AA7: 27 | AB7: 28 | AC7: 29 | AD7: 30 | AE7: 31 | AF7: 32 | AG7: 33 | AH7: 34 | AI7: 35 | AJ7: 36 | AK7: 37 | AL7: 38 | AM7: 39 | AN7: 40 | AO7: 41 | AP7: 42 | AQ7: 43 | AR7: 44 | AS7: 45 | AT7: 46 | AU7: 47 | AV7: 48 | AW7: 49 | AX7: 50 | AY7: 51 | AZ7: 52 | BA7: 53 | BB7: 54 | BC7: 55 | BD7: 56 | BE7: 57 | BF7: 58 | BG7: 59 | BH7: 60 | BI7: 61 | BJ7: 62 | BK7: 63 | BL7: 64 | BM7: 65 | BN7: 66 | BO7: 67 | BP7: 68 | BQ7: 69 | BR7: 70 | BS7: 71 | BT7: 72 | BU7: 73 | BV7: 74 | BW7: 75 | BX7: 76 | BY7: 77 | BZ7: 78 | CA7: 79 | CB7: 80 | CC7: 81 | CD7: 82 | CE7: 83 | CF7: 84 | CG7: 85
A8: АО «Газпром газораспределение Челябинск» | B8: =SUM(C8,D8,F8,E8) -> 0 | C8: 0 | D8: 0 | E8: 0 | F8: 0 | G8: 0 | H8: 0 | I8: 1003739.05 | J8: 0 | K8: 0 | L8: 1003739.05 | M8: 0 | N8: 1003739.05 | O8: 760010.84 | P8: 1866524.17 | Q8: 0 | R8: 43467.2 | S8: 1818710.411 | T8: 4346.55728 | U8: 1866524.17 | V8: 1631875.18 | W8: 8903329.7 | X8: 0 | Y8: 58849.68 | Z8: 8844480.02 | AA8: 0 | AB8: 8903329.7 | AC8: 7419441.41 | AD8: 4274176.14 | AE8: 0 | AF8: 0 | AG8: 4274176.14 | AH8: 0 | AI8: 4274176.14 | AJ8: 3561813.45 | AK8: 50425.67 | AL8: 0 | AM8: 0 | AN8: 50425.67 | AO8: 0 | AP8: 50425.67 | AQ8: 42021.39 | AR8: 100317.74 | AS8: 0 | AT8: 0 | AU8: 100317.74 | AV8: 0 | AW8: 100317.74 | AX8: 83598.12 | AY8: 121395.14 | AZ8: 0 | BA8: 0 | BB8: 121395.14 | BC8: 0 | BD8: 121395.14 | BE8: 101162.62 | BF8: 69101.85 | BG8: 0 | BH8: 0 | BI8: 69101.85 | BJ8: 0 | BK8: 69101.85 | BL8: 57584.87 | BM8: 3201.63 | BN8: 0 | BO8: 0 | BP8: 3201.63 | BQ8: 0 | BR8: 3201.63 | BS8: 2668.03 | BT8: 0 | BU8: 0 | BV8: 0 | BW8: 0 | BX8: 0 | BY8: 0 | BZ8: 0 | CA8: 0 | CB8: 0 | CC8: 0 | CD8: 0 | CE8: 0 | CF8: 0 | CG8: 0
A9: АО «Челябинскгоргаз» | B9: =SUM(C9,D9,F9,E9) -> 0 | C9: 0 | D9: 0 | E9: 0 | F9: 0 | G9: 0 | H9: 0 | I9: 334527.46 | J9: 0 | K9: 0 | L9: 312577.2 | M9: 21950.26 | N9: 119967.15 | O9: 33009.55 | P9: 24133.76 | Q9: 0 | R9: 0 | S9: 0 | T9: 24133.76 | U9: 458288.55 | V9: 124695.03 | W9: 725934.85 | X9: 0 | Y9: 0 | Z9: 698527.97 | AA9: 27406.88 | AB9: 506340.37 | AC9: 746125.48 | AD9: 604400 | AE9: 0 | AF9: 0 | AG9: 600000 | AH9: 4400 | AI9: 604400 | AJ9: 200000 | AK9: 204400 | AL9: 0 | AM9: 0 | AN9: 200000 | AO9: 4400 | AP9: 204400 | AQ9: 200000 | AR9: 104400 | AS9: 0 | AT9: 0 | AU9: 100000 | AV9: 4400 | AW9: 104400 | AX9: 200000 | AY9: 53300 | AZ9: 0 | BA9: 0 | BB9: 50000 | BC9: 3300 | BD9: 53300 | BE9: 150000 | BF9: 103850 | BG9: 0 | BH9: 0 | BI9: 100000 | BJ9: 3850 | BK9: 103850 | BL9: 175000 | BM9: 202994.65 | BN9: 0 | BO9: 0 | BP9: 200000 | BQ9: 2994.65 | BR9: 202994.65 | BS9: 136120.54 | BT9: 0 | BU9: 0 | BV9: 0 | BW9: 0 | BX9: 0 | BY9: 0 | BZ9: 0 | CA9: 0 | CB9: 0 | CC9: 0 | CD9: 0 | CE9: 0 | CF9: 0 | CG9: 0
A10: ООО «Магнитогорскгазстрой» | B10: 0 | C10: 0 | D10: 0 | E10: 0 | F10: 0 | G10: 0 | H10: 0 | I10: 5436.1 | J10: 0 | K10: 5436.1 | L10: 0 | M10: 0 | N10: 5436.1 | O10: 425.1 | P10: 3833.1 | Q10: 0 | R10: 3520.4 | S10: 0 | T10: 312.7 | U10: 3833.1 | V10: 4441.3 | W10: 48752.4 | X10: 0 | Y10: 3520.8 | Z10: 45231.6 | AA10: 0 | AB10: =SUM(Z10,Y10) -> 48752.4 | AC10: 43484.95 | AD10: 4500 | AE10: 0 | AF10: 4500 | AG10: 0 | AH10: 0 | AI10: 4500 | AJ10: 3750 | AK10: 0 | AL10: 0 | AM10: 0 | AN10: 0 | AO10: 0 | AP10: 0 | AQ10: 0 | AR10: 0 | AS10: 0 | AT10: 0 | AU10: 0 | AV10: 0 | AW10: 0 | AX10: 0 | AY10: 0 | AZ10: 0 | BA10: 0 | BB10: 0 | BC10: 0 | BD10: =SUM(BB10,BA10) -> 0 | BE10: 0 | BF10: 0 | BG10: 0 | BH10: 0 | BI10: 0 | BJ10: 0 | BK10: =SUM(BI10,BH10) -> 0 | BL10: 0 | BM10: 0 | BN10: 0 | BO10: 0 | BP10: 0 | BQ10: 0 | BR10: 0 | BS10: 0 | BT10: 0 | BU10: 0 | BV10: 0 | BW10: 0 | BX10: 0 | BY10: 0 | BZ10: 0 | CA10: 0 | CB10: 0 | CC10: 0 | CD10: 0 | CE10: 0 | CF10: 0 | CG10: 0
A11: АО «Трансэнерго» | B11: 419.43 | C11: 0 | D11: 419.43 | E11: 0 | F11: 0 | G11: 419.43 | H11: 349.53 | I11: 5756.26 | J11: 0 | K11: 1247.43 | L11: 0 | M11: 4508.83 | N11: 5756.27 | O11: 4796.89 | P11: 26491.92 | Q11: 0 | R11: 2338.30331 | S11: 24153.62 | T11: 0 | U11: 26491.92 | V11: 22076.6 | W11: =SUM(X11:AA11) -> 47875.01604 | X11: 0 | Y11: 5544.73 | Z11: =(431498+27276118.38+1325000+6241322+1299.99)*1.2/1000 -> 42330.28604 | AA11: 0 | AB11: =W11 -> 47875.01604 | AC11: =AB11/1.2 -> 39895.8467 | AD11: =SUM(AE11:AH11) -> 61946.79088 | AE11: 0 | AF11: 6175 | AG11: =(41111.3424+5365.15)*1.2 -> 55771.79088 | AH11: 0 | AI11: =AD11 -> 61946.79088 | AJ11: =AI11/1.2 -> 51622.32573 | AK11: =SUM(AL11:AO11) -> 49104.9057 | AL11: 0 | AM11: 6175 | AN11: =(30525.7104+1.31102+5247.9)*1.2 -> 42929.9057 | AO11: 0 | AP11: =AK11 -> 49104.9057 | AQ11: =AP11/1.2 -> 40920.75475 | AR11: 0 | AS11: 0 | AT11: 0 | AU11: 0 | AV11: 0 | AW11: 0 | AX11: 0 | AY11: 0 | AZ11: 0 | BA11: 0 | BB11: 0 | BC11: 0 | BD11: 0 | BE11: 0 | BF11: 0 | BG11: 0 | BH11: 0 | BI11: 0 | BJ11: 0 | BK11: 0 | BL11: 0 | BM11: 0 | BN11: 0 | BO11: 0 | BP11: 0 | BQ11: 0 | BR11: 0 | BS11: 0 | BT11: 0 | BU11: 0 | BV11: 0 | BW11: 0 | BX11: 0 | BY11: 0 | BZ11: 0 | CA11: 0 | CB11: 0 | CC11: 0 | CD11: 0 | CE11: 0 | CF11: 0 | CG11: 0
A12: ООО «Классик» | B12: 0 | C12: 0 | D12: 0 | E12: 0 | F12: 0 | G12: 0 | H12: 0 | I12: 47961.83 | J12: 0 | K12: 0 | L12: 47961.83 | M12: 0 | N12: 0 | O12: 0 | P12: 0 | Q12: 0 | R12: 0 | S12: 0 | T12: 0 | U12: 47961.83 | V12: 47961.83 | W12: 121650 | X12: 0 | Y12: 0 | Z12: 121650 | AA12: 0 | AB12: 121650 | AC12: 121650 | AD12: 43900 | AE12: 0 | AF12: 0 | AG12: 43900 | AH12: 0 | AI12: 43900 | AJ12: 43900 | AK12: 8640 | AL12: 0 | AM12: 0 | AN12: 8640 | AO12: 0 | AP12: 8640 | AQ12: 8640 | AR12: 214000 | AS12: 0 | AT12: 0 | AU12: 214000 | AV12: 0 | AW12: 214000 | AX12: 214000 | AY12: 152300 | AZ12: 0 | BA12: 0 | BB12: 152300 | BC12: 0 | BD12: 152300 | BE12: 152300 | BF12: 107200 | BG12: 0 | BH12: 0 | BI12: 107200 | BJ12: 0 | BK12: 107200 | BL12: 107200 | BM12: 22200 | BN12: 0 | BO12: 0 | BP12: 22200 | BQ12: 0 | BR12: 22200 | BS12: 22200 | BT12: 19600 | BU12: 0 | BV12: 0 | BW12: 19600 | BX12: 0 | BY12: 19600 | BZ12: 19600 | CA12: 8348.62 | CB12: 0 | CC12: 0 | CD12: 8348.62 | CE12: 0 | CF12: 8348.62 | CG12: 8348.62
A13: ООО «Стандарт Лимит» | B13: 0 | C13: 0 | D13: 0 | E13: 0 | F13: 0 | G13: 0 | H13: 0 | I13: 0 | J13: 0 | K13: 0 | L13: 0 | M13: 0 | N13: 0 | O13: 0 | P13: 0 | Q13: 0 | R13: 0 | S13: 0 | T13: 0 | U13: 0 | V13: 0 | W13: 0 | X13: 0 | Y13: 0 | Z13: 0 | AA13: 0 | AB13: 0 | AC13: 0 | AD13: 0 | AE13: 0 | AF13: 0 | AG13: 0 | AH13: 0 | AI13: 0 | AJ13: 0 | AK13: 0 | AL13: 0 | AM13: 0 | AN13: 0 | AO13: 0 | AP13: 0 | AQ13: 0 | AR13: 724.29 | AS13: 0 | AT13: 0 | AU13: 724.29 | AV13: 0 | AW13: 724.29 | AX13: 603.58 | AY13: 0 | AZ13: 0 | BA13: 0 | BB13: 0 | BC13: 0 | BD13: 0 | BE13: 0 | BF13: 0 | BG13: 0 | BH13: 0 | BI13: 0 | BJ13: 0 | BK13: 0 | BL13: 0 | BM13: 0 | BN13: 0 | BO13: 0 | BP13: 0 | BQ13: 0 | BR13: 0 | BS13: 0 | BT13: 0 | BU13: 0 | BV13: 0 | BW13: 0 | BX13: 0 | BY13: 0 | BZ13: 0 | CA13: 0 | CB13: 0 | CC13: 0 | CD13: 0 | CE13: 0 | CF13: 0 | CG13: 0
A14: МУП «МПОЭ» г. Трехгорный | B14: 0 | C14: 0 | D14: 0 | E14: 0 | F14: 0 | G14: 0 | H14: 0 | I14: 0 | J14: 0 | K14: 0 | L14: 0 | M14: 0 | N14: 0 | O14: 0 | P14: 2867.83 | Q14: 2867.83 | R14: 0 | S14: 0 | T14: 0 | U14: 2867.83 | V14: 305.81 | W14: 3856 | X14: 3856 | Y14: 0 | Z14: 0 | AA14: 0 | AB14: 3856 | AC14: 5297.38 | AD14: 0 | AE14: 0 | AF14: 0 | AG14: 0 | AH14: 0 | AI14: 0 | AJ14: 0 | AK14: 0 | AL14: 0 | AM14: 0 | AN14: 0 | AO14: 0 | AP14: 0 | AQ14: 0 | AR14: 0 | AS14: 0 | AT14: 0 | AU14: 0 | AV14: 0 | AW14: 0 | AX14: 0 | AY14: 0 | AZ14: 0 | BA14: 0 | BB14: 0 | BC14: 0 | BD14: 0 | BE14: 0 | BF14: 0 | BG14: 0 | BH14: 0 | BI14: 0 | BJ14: 0 | BK14: 0 | BL14: 0 | BM14: 0 | BN14: 0 | BO14: 0 | BP14: 0 | BQ14: 0 | BR14: 0 | BS14: 0 | BT14: 0 | BU14: 0 | BV14: 0 | BW14: 0 | BX14: 0 | BY14: 0 | BZ14: 0 | CA14: 0 | CB14: 0 | CC14: 0 | CD14: 0 | CE14: 0 | CF14: 0 | CG14: 0
A15: ООО «Партнер-Газ» | B15: 0 | C15: 0 | D15: 0 | E15: 0 | F15: 0 | G15: 0 | H15: 0 | I15: 15992.33 | J15: 0 | K15: 0 | L15: 15992.33 | M15: 0 | N15: 8493.54 | O15: 0 | P15: 32241.11 | Q15: 0 | R15: 0 | S15: 32241.11 | T15: 0 | U15: 35064.77 | V15: 25107 | W15: 89500 | X15: 0 | Y15: 0 | Z15: 82000 | AA15: 7500 | AB15: 94175.13 | AC15: 112626.44 | AD15: 117992.38 | AE15: 0 | AF15: 0 | AG15: 18742.38 | AH15: 99250 | AI15: 117992.38 | AJ15: 117992.38 | AK15: 0 | AL15: 0 | AM15: 0 | AN15: 0 | AO15: 0 | AP15: 0 | AQ15: 0 | AR15: 0 | AS15: 0 | AT15: 0 | AU15: 0 | AV15: 0 | AW15: 0 | AX15: 0 | AY15: 0 | AZ15: 0 | BA15: 0 | BB15: 0 | BC15: 0 | BD15: 0 | BE15: 0 | BF15: 0 | BG15: 0 | BH15: 0 | BI15: 0 | BJ15: 0 | BK15: 0 | BL15: 0 | BM15: 0 | BN15: 0 | BO15: 0 | BP15: 0 | BQ15: 0 | BR15: 0 | BS15: 0 | BT15: 0 | BU15: 0 | BV15: 0 | BW15: 0 | BX15: 0 | BY15: 0 | BZ15: 0 | CA15: 0 | CB15: 0 | CC15: 0 | CD15: 0 | CE15: 0 | CF15: 0 | CG15: 0
A16: МУП «Магнитогорские газовые сети» | B16: 0 | C16: 0 | D16: 0 | E16: 0 | F16: 0 | G16: 0 | H16: 0 | I16: 41003.23 | J16: 0 | K16: 3270.45 | L16: 30508.03 | M16: 7224.75 | N16: 21738.36 | O16: 0 | P16: 101843.76 | Q16: 0 | R16: 5711.91 | S16: 93367.22 | T16: 2764.63 | U16: 60819.58 | V16: 53138.62 | W16: 318389.62 | X16: 0 | Y16: 5588.62 | Z16: 312801 | AA16: 0 | AB16: 403385.26 | AC16: 254523.08 | AD16: 235747.89 | AE16: 0 | AF16: 5923.2 | AG16: 229824.69 | AH16: 0 | AI16: 187366.76 | AJ16: 259877.41 | AK16: 31695.68 | AL16: 0 | AM16: 6159.6 | AN16: 25536.08 | AO16: 0 | AP16: 55370.22 | AQ16: 39694.37 | AR16: 0 | AS16: 0 | AT16: 0 | AU16: 0 | AV16: 0 | AW16: 0 | AX16: 0 | AY16: 0 | AZ16: 0 | BA16: 0 | BB16: 0 | BC16: 0 | BD16: 0 | BE16: 0 | BF16: 0 | BG16: 0 | BH16: 0 | BI16: 0 | BJ16: 0 | BK16: 0 | BL16: 0 | BM16: 0 | BN16: 0 | BO16: 0 | BP16: 0 | BQ16: 0 | BR16: 0 | BS16: 0 | BT16: 0 | BU16: 0 | BV16: 0 | BW16: 0 | BX16: 0 | BY16: 0 | BZ16: 0 | CA16: 0 | CB16: 0 | CC16: 0 | CD16: 0 | CE16: 0 | CF16: 0 | CG16: 0
A17: ООО «Озерскгаз» | B17: 0 | C17: 0 | D17: 0 | E17: 0 | F17: 0 | G17: 0 | H17: 0 | I17: 0 | J17: 0 | K17: 0 | L17: 0 | M17: 0 | N17: 0 | O17: 0 | P17: 0 | Q17: 0 | R17: 0 | S17: 0 | T17: 0 | U17: 0 | V17: 0 | W17: 1291 | X17: 0 | Y17: 1291 | Z17: 0 | AA17: 0 | AB17: 1291 | AC17: 1075.83 | AD17: 1291 | AE17: 0 | AF17: 1291 | AG17: 0 | AH17: 0 | AI17: 1291 | AJ17: 1075.83 | AK17: 0 | AL17: 0 | AM17: 0 | AN17: 0 | AO17: 0 | AP17: 0 | AQ17: 0 | AR17: 0 | AS17: 0 | AT17: 0 | AU17: 0 | AV17: 0 | AW17: 0 | AX17: 0 | AY17: 0 | AZ17: 0 | BA17: 0 | BB17: 0 | BC17: 0 | BD17: 0 | BE17: 0 | BF17: 0 | BG17: 0 | BH17: 0 | BI17: 0 | BJ17: 0 | BK17: 0 | BL17: 0 | BM17: 0 | BN17: 0 | BO17: 0 | BP17: 0 | BQ17: 0 | BR17: 0 | BS17: 0 | BT17: 2048 | BU17: 0 | BV17: 2048 | BW17: 0 | BX17: 0 | BY17: 2048 | BZ17: 1706.67 | CA17: 0 | CB17: 0 | CC17: 0 | CD17: 0 | CE17: 0 | CF17: 0 | CG17: 0
A18: ООО «Тополь М» | B18: 82 | C18: 0 | D18: 0 | E18: 0 | F18: 82 | G18: 82 | H18: 0 | I18: 21660.48 | J18: 0 | K18: 0 | L18: 21660.48 | M18: 0 | N18: 21660.48 | O18: 0 | P18: 46682.3 | Q18: 0 | R18: 0 | S18: 46682.3 | T18: 0 | U18: 46682.3 | V18: 7806.04 | W18: 120000 | X18: 0 | Y18: 0 | Z18: 120000 | AA18: 0 | AB18: 120000 | AC18: 180618.74 | AD18: 61575.22 | AE18: 0 | AF18: 0 | AG18: 61575.22 | AH18: 0 | AI18: 61575.22 | AJ18: 61575.22 | AK18: 100000 | AL18: 0 | AM18: 0 | AN18: 100000 | AO18: 0 | AP18: 100000 | AQ18: 100000 | AR18: 0 | AS18: 0 | AT18: 0 | AU18: 0 | AV18: 0 | AW18: 0 | AX18: 0 | AY18: 0 | AZ18: 0 | BA18: 0 | BB18: 0 | BC18: 0 | BD18: 0 | BE18: 0 | BF18: 0 | BG18: 0 | BH18: 0 | BI18: 0 | BJ18: 0 | BK18: 0 | BL18: 0 | BM18: 0 | BN18: 0 | BO18: 0 | BP18: 0 | BQ18: 0 | BR18: 0 | BS18: 0 | BT18: 0 | BU18: 0 | BV18: 0 | BW18: 0 | BX18: 0 | BY18: 0 | BZ18: 0 | CA18: 0 | CB18: 0 | CC18: 0 | CD18: 0 | CE18: 0 | CF18: 0 | CG18: 0
A19: ООО «Газэнергосервис» | B19: 0 | C19: 0 | D19: 0 | E19: 0 | F19: 0 | G19: 0 | H19: 0 | I19: 0 | J19: 0 | K19: 0 | L19: 0 | M19: 0 | N19: 0 | O19: 0 | P19: 2245.32 | Q19: 0 | R19: 0 | S19: 0 | T19: 2245.32 | U19: 2245.32 | V19: 1871.1 | W19: 1152.47 | X19: 0 | Y19: 0 | Z19: 0 | AA19: 1152.47 | AB19: 1152.47 | AC19: 960.39 | AD19: 0 | AE19: 0 | AF19: 0 | AG19: 0 | AH19: 0 | AI19: 0 | AJ19: 0 | AK19: 0 | AL19: 0 | AM19: 0 | AN19: 0 | AO19: 0 | AP19: 0 | AQ19: 0 | AR19: 0 | AS19: 0 | AT19: 0 | AU19: 0 | AV19: 0 | AW19: 0 | AX19: 0 | AY19: 0 | AZ19: 0 | BA19: 0 | BB19: 0 | BC19: 0 | BD19: 0 | BE19: 0 | BF19: 0 | BG19: 0 | BH19: 0 | BI19: 0 | BJ19: 0 | BK19: 0 | BL19: 0 | BM19: 0 | BN19: 0 | BO19: 0 | BP19: 0 | BQ19: 0 | BR19: 0 | BS19: 0 | BT19: 0 | BU19: 0 | BV19: 0 | BW19: 0 | BX19: 0 | BY19: 0 | BZ19: 0 | CA19: 0 | CB19: 0 | CC19: 0 | CD19: 0 | CE19: 0 | CF19: 0 | CG19: 0
A20: Итого: | B20: =SUM(B8:B19) -> 501.43 | C20: 0 | D20: 419.43 | E20: 0 | F20: 82 | G20: 501.43 | H20: 349.53 | I20: 1476076.74 | J20: 0 | K20: 9953.98 | L20: 1432438.92 | M20: 33683.84 | N20: 1186790.95 | O20: 798242.38 | P20: 2106863.27 | Q20: 2867.83 | R20: 55037.81331 | S20: 2015154.661 | T20: 33802.96728 | U20: 2550779.37 | V20: 1919278.51 | W20: 10381731.06 | X20: 3856 | Y20: 74794.83 | Z20: 10267020.88 | AA20: 36059.35 | AB20: 10251807.35 | AC20: 8925699.547 | AD20: 5405529.421 | AE20: 0 | AF20: 17889.2 | AG20: 5283990.221 | AH20: =SUM(AH8:AH19) -> 103650 | AI20: 5357148.291 | AJ20: 4301606.616 | AK20: 444266.2557 | AL20: 0 | AM20: 12334.6 | AN20: 427531.6557 | AO20: 4400 | AP20: 467940.7957 | AQ20: 431276.5148 | AR20: 419442.03 | AS20: 0 | AT20: 0 | AU20: 415042.03 | AV20: 4400 | AW20: 419442.03 | AX20: 498201.7 | AY20: 326995.14 | AZ20: 0 | BA20: 0 | BB20: 323695.14 | BC20: 3300 | BD20: 326995.14 | BE20: 403462.62 | BF20: 280151.85 | BG20: 0 | BH20: 0 | BI20: 276301.85 | BJ20: 3850 | BK20: 280151.85 | BL20: 339784.87 | BM20: 228396.28 | BN20: 0 | BO20: 0 | BP20: 225401.63 | BQ20: 2994.65 | BR20: 228396.28 | BS20: 160988.57 | BT20: 21648 | BU20: 0 | BV20: 2048 | BW20: 19600 | BX20: 0 | BY20: 21648 | BZ20: 21306.67 | CA20: 8348.62 | CB20: 0 | CC20: 0 | CD20: 8348.62 | CE20: 0 | CF20: 8348.62 | CG20: 8348.62
